Cogmind - Beta 10.2 @@@ ROGUE MODE // 2021.09.13 @ 18:03:06 Player: cavemonk Result: Self-destructed Performance ------------- Evolutions (0) 0 Regions Visited (4) 800 Robots Destroyed (23) 115 Value Destroyed (423) 423 Prototype IDs (23) 460 Alien Tech Used (0) 0 Bonus (300) 300 TOTAL SCORE: 2098 Bonus ------- Aligned with FarCom 300 Cogmind --------- Core Integrity 113/250 Matter 294/300 Energy 250/250 System Corruption 0% Temperature Cool (0) Movement Treading (220) Ox3 Location -9/Mines Parts ------- > --- POWER (1) -------- Ion Engine > --- PROPULSION (2) --- Light Treads > --- UTILITY (2) ------ High-capacity Storage Unit High-capacity Storage Unit > --- WEAPON (2) ------- Assault Rifle Assault Rifle > --- INVENTORY (20) --- Light Nuclear Core Medium Storage Unit Large Storage Unit High-capacity Storage Unit Humpback Humpback Improved Terrain Scanner Assault Rifle Assault Rifle Grenade Launcher Grenade Launcher Grenade Launcher Rocket Launcher Mining Laser Explosive Trap Explosive Trap Explosive Trap Explosive Trap Peak State ------------ > --- POWER ------------ Ion Engine > --- PROPULSION ------- Light Treads Wheel > --- UTILITY ---------- High-capacity Storage Unit Improved Terrain Scanner > --- WEAPON ----------- Assault Rifle Assault Rifle > --- INVENTORY -------- Light Ion Engine Light Treads Medium Storage Unit Large Storage Unit High-capacity Storage Unit Medium Matter Pod Medium Laser Assault Rifle Assault Rifle Mining Laser [Rating: 9] Favorites ----------- Power Ion Engine Engine Ion Engine Propulsion Light Treads Treads Light Treads Leg Aluminum Leg Wheel Wheel Utility High-capacity Storage Unit Device Improved Terrain Scanner Storage High-capacity Storage Unit Weapon Assault Rifle Energy Gun Medium Laser Ballistic Gun Assault Rifle Launcher Grenade Launcher Special Weapon Mining Laser Build | -11 -10 -10 -10 -9 ------- Run | Scr Mat Min Exi Min Slots Evolved . | . . . . . Power . | . . . . . Propulsion . | . . . . . Utility . | . . . . . Weapon . | . . . . . Parts Attached 33 | 3 24 6 . . Power 1 | . 1 . . . Engine 1 | . 1 . . . Core . | . . . . . Reactor . | . . . . . Propulsion 11 | 2 6 3 . . Treads 5 | 1 3 1 . . Leg . | . . . . . Wheel 6 | 1 3 2 . . Hover . | . . . . . Flight . | . . . . . Utility 5 | 1 3 1 . . Device 1 | 1 . . . . Storage 4 | . 3 1 . . Processor . | . . . . . Hackware . | . . . . . Protection . | . . . . . Artifact . | . . . . . Weapon 16 | . 14 2 . . Energy Gun . | . . . . . Energy Cannon . | . . . . . Ballistic Gun 8 | . 7 1 . . Ballistic Cannon . | . . . . . Launcher 1 | . . 1 . . Special Weapon 7 | . 7 . . . Impact Weapon . | . . . . . Slashing Weapon . | . . . . . Piercing Weapon . | . . . . . Special Melee Weapon . | . . . . . Unidentified Prototypes . | . . . . . Parts Lost 2 | . . 2 . . Power . | . . . . . Propulsion 2 | . . 2 . . Utility . | . . . . . Weapon . | . . . . . Highest Loss Streak 1 | . . 1 . . Average Slot Usage (%) 95 | . 100 95 85 85 Engine 14 | . 14 14 14 14 Treads 14 | . 15 14 14 14 Wheel 8 | . 12 9 . . Device 8 | . 14 8 . . Storage 19 | . 14 19 28 28 Energy Gun 1 | . 4 . . . Ballistic Gun 24 | . 18 27 28 28 Special Weapon 1 | . 4 . . . Naked Turns . | . . . . . Heaviest Build 73 | 12 42 73 73 73 Greatest Support 40 | 20 40 20 20 20 Greatest Overweight (x) 7 | 1 4 7 3 3 Average Overweight (x) 3 | . 2 4 3 3 Largest Inventory Capacity 20 | 6 12 20 20 20 Average Capacity 14 | 6 10 15 20 20 Most Carried 20 | 6 12 18 20 20 Average Carried 12 | 5 7 14 18 20 Final Capacity 20 | 6 12 20 20 20 Final Carried 20 | 4 12 18 20 20 Class Distribution -------------------- 57% | Mutant 35% | Hauler-Mutant 6% | Scavenger-Mutant Dominant Class ---------------- Mutant | -10/Materials Mutant | -10/Mines Hauler-Mutant | -10/Exiles Hauler-Mutant | -9/Mines Resources | -11 -10 -10 -10 -9 ----------- Run | Scr Mat Min Exi Min Matter Collected 905 | 292 299 309 5 . Remotely . | . . . . . Salvage Created 697 | 155 290 252 . . Parts 45 | 14 20 11 . . Haulers Intercepted 1 | . 1 . . . Recyclers Shooed 1 | . 1 . . . Parts Field Recycled . | . . . . . Retrieved Matter . | . . . . . Parts Self-Destructed . | . . . . . Prevented . | . . . . . Kills | -11 -10 -10 -10 -9 ------- Run | Scr Mat Min Exi Min Combat Hostiles Destroyed 14 | . 6 8 . . Guns 11 | . 6 5 . . AOE 3 | . . 3 . . Classes Destroyed 6 | 2 4 . . . Tunneler 5 | 5 . . . . Hauler 1 | . 1 . . . Recycler 2 | 1 1 . . . Watcher 1 | . 1 . . . Swarmer 6 | . 3 3 . . Grunt 8 | . 3 5 . . Best Kill Streak 3 | 2 3 3 . . Combat Bots Only 3 | . 3 3 . . Max Kills in Single Turn 3 | 1 1 3 . . Gunslinging . | . . . . . Exploded 3 | . . 3 . . Melee . | . . . . . Uniques/NPCs Destroyed . | . . . . . Combat | -11 -10 -10 -10 -9 -------- Run | Scr Mat Min Exi Min Damage Taken 686 | . 312 313 59 2 Core 137 | . 23 97 16 1 Absorbed by Shields . | . . . . . Core Remaining (%) 100 | 100 . . . . Volleys Fired 86 | 21 44 20 . 1 Largest 2 | 2 2 2 . 2 Hottest 100 | 70 100 40 . 40 Shots Fired 153 | 42 70 39 . 2 Gun 134 | 42 52 38 . 2 Cannon . | . . . . . Launcher 1 | . . 1 . . Special 18 | . 18 . . . Kinetic 96 | 21 35 38 . 2 Thermal 56 | 21 35 . . . Explosive 1 | . . 1 . . Electromagnetic . | . . . . . Robot Hit Streak 14 | 5 11 14 . 1 Robot Miss Streak 3 | 3 2 2 . 1 Penetration Max . | . . . . . Secondary Targets 3 | . 3 . . . Max Gunslinging Chain 1 | . 1 . . . Shots Hit Robots 91 | 23 38 29 . 1 Core Hits 35 | 7 14 14 . . Critical Hits 2 | . 2 . . . Critical Kills . | . . . . . Critical Parts Destroyed 1 | . 1 . . . Melee Attacks . | . . . . . Impact . | . . . . . Slashing . | . . . . . Piercing . | . . . . . Sneak Attacks . | . . . . . Combat Hostiles . | . . . . . Follow-up Attacks . | . . . . . Damage Inflicted 1203 | 257 460 486 . . Guns 1077 | 257 460 360 . . Cannons . | . . . . . Explosions 121 | . . 121 . . Melee . | . . . . . Ramming 5 | . . 5 . . Kinetic 774 | 117 297 360 . . Thermal 303 | 140 163 . . . Explosive 121 | . . 121 . . Electromagnetic . | . . . . . Impact . | . . . . . Slashing . | . . . . . Piercing . | . . . . . Highest Corruption . | . . . . . Average Corruption . | . . . . . Corruption Purged . | . . . . . Overload Shots . | . . . . . Overflow Damage . | . . . . . Projectiles . | . . . . . Explosions . | . . . . . Melee . | . . . . . Knockbacks . | . . . . . Impact . | . . . . . Kinetic . | . . . . . Secondary . | . . . . . Self-Inflicted Damage . | . . . . . Shots . | . . . . . Rammed 2 | . 1 1 . . Targets Rammed 2 | . 1 1 . . Kicked . | . . . . . Crushed . | . . . . . Highest Temperature 65 | 65 45 9 . . Average Temperature 20 | 26 18 3 . . Received Heat Transfer 291 | . 126 165 . . Siege Activations . | . . . . . Robots Corrupted . | . . . . . Combat Hostiles . | . . . . . Parts Fried . | . . . . . Impact Corruptions . | . . . . . Robots Melted . | . . . . . Combat Hostiles . | . . . . . Parts Melted 2 | 1 1 . . . Heat Transferred 888 | 407 481 . . . Parts Sabotaged . | . . . . . Parts Stolen . | . . . . . Parts Stripped . | . . . . . Power Chain Reactions . | . . . . . Missiles Intercepted . | . . . . . Alert | -11 -10 -10 -10 -9 ------- Run | Scr Mat Min Exi Min Peak Influence 192 | 30 116 192 . . Initial 37 | . 19 37 . . Average 57 | 17 50 70 . . Maximum Alert Level . | . . . . . Low Security (%) 100 | 100 100 100 . 100 Level 1 . | . . . . . Level 2 . | . . . . . Level 3 . | . . . . . Level 4 . | . . . . . Level 5 . | . . . . . High Security . | . . . . . Max Security . | . . . . . Squads Dispatched 3 | . 3 . . . Investigation 3 | . 3 . . . Extermination . | . . . . . Reinforcement . | . . . . . Assault . | . . . . . Garrison . | . . . . . Intercept . | . . . . . Construction Impeded . | . . . . . Haulers Reinforced . | . . . . . Stealth | -11 -10 -10 -10 -9 --------- Run | Scr Mat Min Exi Min Distress Signals 1 | . . 1 . . Communications Jammed . | . . . . . Distress Signals . | . . . . . Times Spotted 21 | . 9 11 1 . Peak Tracking Total 3 | . 3 3 1 . Tactical Retreats 3 | . 1 2 . . Traps | -11 -10 -10 -10 -9 ------- Run | Scr Mat Min Exi Min Traps Triggered 2 | . 2 . . . Indirectly . | . . . . . Trap Hack Attempts . | . . . . . Triggered . | . . . . . Disarmed . | . . . . . Reprogrammed 3 | . 3 . . . Reused . | . . . . . Traps Extracted . | . . . . . Installed . | . . . . . Triggered . | . . . . . Exploded 2 | . . . 2 . Machines | -11 -10 -10 -10 -9 ---------- Run | Scr Mat Min Exi Min Machines Disabled 1 | . 1 . . . Max in Single Turn 1 | . 1 . . . Machines Sabotaged . | . . . . . Garrisons Compromised . | . . . . . Overloaded Fab Kills . | . . . . . Fab Network Shutdowns . | . . . . . Hacking | -11 -10 -10 -10 -9 --------- Run | Scr Mat Min Exi Min Machines Accessed 9 | . 8 . 1 . Terminals 5 | . 5 . . . Fabricators . | . . . . . Repair Stations 1 | . 1 . . . Recycling Units 2 | . 2 . . . Scanalyzers . | . . . . . Garrison Access . | . . . . . Total Hacks 24 | . 23 . 1 . Successful 14 | . 13 . 1 . Failed 10 | . 10 . . . Catastrophic 1 | . 1 . . . Database Lockouts . | . . . . . Manual 21 | . 20 . 1 . Terminals 17 | . 17 . . . Fabricators . | . . . . . Repair Stations 2 | . 2 . . . Recycling Units 4 | . 4 . . . Scanalyzers . | . . . . . Garrison Access . | . . . . . Terminal Hacks 7 | . 6 . 1 . Robot Analysis 2 | . 2 . . . Terminal Index 1 | . 1 . . . Locate Traps 1 | . 1 . . . Reprogram Traps 1 | . 1 . . . Zone Layout 1 | . 1 . . . EX-Prototype ID Bank 1 | . . . 1 . Fabricator Hacks . | . . . . . Repair Station Hacks 2 | . 2 . . . Scan Component 1 | . 1 . . . Repair 1 | . 1 . . . Recycling Unit Hacks . | . . . . . Scanalyzer . | . . . . . Garrison Access Hacks . | . . . . . Unauthorized Hacks 5 | . 5 . . . Terminals 3 | . 3 . . . Track 2 | . 2 . . . Operators 1 | . 1 . . . Fabricators . | . . . . . Repair Stations . | . . . . . Recycling Units 2 | . 2 . . . Tunnel 2 | . 2 . . . Scanalyzers . | . . . . . Garrison Access . | . . . . . Data Cores Recovered . | . . . . . Used . | . . . . . Hacking Detections 6 | . 6 . . . Full Trace Events . | . . . . . Feedback Events . | . . . . . Feedback Blocked . | . . . . . Robot Schematics Acquired . | . . . . . Robots Built . | . . . . . Matter . | . . . . . Time . | . . . . . Total Robot Build Rating . | . . . . . Part Schematics Acquired . | . . . . . Parts Built . | . . . . . Matter . | . . . . . Time . | . . . . . Total Part Build Rating . | . . . . . Parts Repaired 1 | . 1 . . . Time 26 | . 26 . . . Parts Recycled . | . . . . . Recycled Matter . | . . . . . Retrieved Matter . | . . . . . Retrieved Components . | . . . . . Parts Scanalyzed . | . . . . . Part Schematics Acquired . | . . . . . Parts Damaged . | . . . . . Bothacking | -11 -10 -10 -10 -9 ------------ Run | Scr Mat Min Exi Min Used RIF Installer . | . . . . . Robots Hacked . | . . . . . Non-combat . | . . . . . Combat . | . . . . . Robot Hacks Applied . | . . . . . Relay Couplers Released . | . . . . . Robots Rewired . | . . . . . Allies Hacked . | . . . . . Hacks Repelled . | . . . . . Allies | -11 -10 -10 -10 -9 -------- Run | Scr Mat Min Exi Min Total Allies . | . . . . . Largest Group . | . . . . . Highest-Rated Group . | . . . . . Highest-Rated Ally . | . . . . . Total Orders . | . . . . . Ally Attacks . | . . . . . Total Damage . | . . . . . Kills . | . . . . . Allies Corrupted . | . . . . . Allies Melted . | . . . . . Intel | -11 -10 -10 -10 -9 ------- Run | Scr Mat Min Exi Min Robot Analysis Total 2 | . 2 . . . Derelict Logs Recovered 1 | . . 1 . . Drone Launches . | . . . . . Drone Recoveries . | . . . . . Exploration | -11 -10 -10 -10 -9 ------------- Run | Scr Mat Min Exi Min Turns Passed 3021 | 151 1099 1186 573 12 Spaces Moved 1663 | 57 754 588 260 4 Core . | . . . . . Treads 430 | 5 7 154 260 4 Legs 49 | 49 . . . . Wheels 1184 | 3 747 434 . . Hover . | . . . . . Flight . | . . . . . Fastest Speed 90 | 90 90 120 220 220 Average Speed 142 | 121 110 149 220 220 Slowest Speed 220 | 160 200 220 220 220 Overloaded Moves . | . . . . . Propulsion Burnouts . | . . . . . Robots Hopped . | . . . . . Cave-ins Triggered . | . . . . . Exploration Rate (%) 48 | 5 72 98 61 6 Regions Visited 4 Branch Regions 3 Pre-discovered Areas 3 | . 2 1 . . Known Exits Taken . | . . . . . Unknown Exits Taken 4 | 1 1 1 1 . Scrap Searched 1 | . . 1 . . Spaces Dug 17 | . 17 . . . Terrain Destroyed 23 | . 17 6 . . Melee . | . . . . . Projectile 17 | . 17 . . . AOE 6 | . . 6 . . Terrain Rammed . | . . . . . Walls Destroyed . | . . . . . Machines Disabled . | . . . . . Actions | -11 -10 -10 -10 -9 --------- Run | Scr Mat Min Exi Min Total 2122 | 97 902 855 263 5 Wait 308 | 12 67 229 . . Move 1659 | 56 753 587 259 4 Hop . | . . . . . Pick Up 21 | 1 9 9 2 . Fast Attach 3 | 2 . 1 . . Attach 2 | 1 . 1 . . Detach . | . . . . . Swap 28 | . 24 4 . . Drop 13 | 4 4 3 2 . Fire 86 | 21 44 20 . 1 Melee . | . . . . . Ram . | . . . . . Kick . | . . . . . Crush 2 | . 1 1 . . Escape Stasis . | . . . . . Rewire . | . . . . . Trap . | . . . . . Miscellaneous . | . . . . . Route ------- -11/Scrapyard -10/Materials (discovered 4 exits: [*Mat x2] / [*Min x2]) -10/Mines (discovered 3 exits: [*Mat x2] / *Exi) -10/Exiles -9/Mines History --------- Turn | Location | Event 19 | -11/Scrapyard | Discovered new exit (range 3) 152 | -11/Scrapyard | Entered Materials 185 | -10/Materials | Discovered new exit (range 15) 234 | -10/Materials | Discovered new exit (range 13) 304 | -10/Materials | Build established: Mutant 565 | -10/Materials | Repaired Med. Laser 800 | -10/Materials | Discovered new exit (range 15) 941 | -10/Materials | Discovered new exit (range 3) 1251 | -10/Materials | Entered Mines 1733 | -10/Mines | Discovered new exit (range 9) 1955 | -10/Mines | Found a hidden stash of uninstalled traps 1987 | -10/Mines | Discovered new exit (range 5) 2032 | -10/Mines | Received a Rocket Launcher from a helpful Derelict 2158 | -10/Mines | Learned 2 Materials zone layouts 2224 | -10/Mines | Deemed a non-threat by the Exiles lab entrance 2226 | -10/Mines | Discovered new exit (range 5) 2246 | -10/Mines | Build established: Hauler-Mutant 2319 | -10/Mines | Learned location of Storage (-7) 2437 | -10/Mines | Entered Exiles 2490 | -10/Exiles | Met 8R-AWN 2530 | -10/Exiles | Met EX-HEX 2589 | -10/Exiles | Met EX-BIN 2690 | -10/Exiles | Aligned with FarCom system 2693 | -10/Exiles | Given EX-Vault access code 2750 | -10/Exiles | Opened EX-Vault 2807 | -10/Exiles | Warned to stay clear of 0b10 Research branches 2839 | -10/Exiles | Exiles lab attacked by MAIN.C 2993 | -10/Exiles | Discovered new exit (range 10) 3010 | -10/Exiles | Core integrity fell below 50% 3010 | -10/Exiles | Entered Mines 3011 | -9/Mines | Assembled infested the area 3016 | -9/Mines | Assisted by a Guerilla fighting off Assembled 3022 | -9/Mines | Self-destructed Last Messages --------------- 02892_ 8R-AWN: "I'll cover you all, get out of here!" 02950_ Acquired Humpback. 02953_ Dropped Med. Matter Pod. 02954_ Dropped Med. Laser. 02954_ Acquired Humpback. 02955_ Extracted 5 matter. 02979_ Machine disabled. 02993_ EXIT=FOUND LOCATION=UNKNOWN GOAL=ESCAPE 03010_ Receiving FarCom transmissions... 03011_ ALERT: Infestation in the mines, dispatching Demolisher response squad. 03011_ J5-HVA: "That was close. Too bad in all the rush we got split up from the others." 03016_ A derelict emerges from the shadows: "You need to get out of here! I've been tracking a group of Assembled to figure out where they're coming from, and they're closing on this area, come on!" 03017_ OC-7HB(h): "I'll hold them off! Go on ahead or try to find another way!" Map ----- +----------------------------------------------------+ | ????????????????????????????????????????? | | ????????????????????????????????????????? | | ????????????????????????????????????????? | | ????????????????????????????????????????? | | ????????????????????????????????????????? | | ????????????????????????????????????????? | | ????????????????????????????????????????? | | ????????????????????????????????????????? | | ?????????s??????????????????????????????? | | ????????s???????????????????????????????? | | ????????????????????????????????????????? | | ????????????????????????????????????????? | | ????????????????????????????????????????? | | ????????????????????????????????????????? | | ????????????????????????????????????????? | | ??????????????????????# ???????????????? | | ?????????????????????? d ???????????????? | | ?????????????????????? ?#?????????????? | | ????????????????????? d ? #?????????????? | | ????????????????????? ??????????????? | | ????????????????????? ???????????????? | | ??????????########??? #???????????????? | | ??????????#$ #??? #???????????????? | | ??????????# !!! ##?? #???????????????? | | ??????????# ! ! ## % #???????????????? | | ??????????# ! !@ # #???????????????? | | ??????????# !! #???????????????? | | ??????????# #???????????????? | | ??????????##### ##??????????????? | | ??????????????## #??????????????? | | ???????????????## #??????????????? | | ????????????????## ##??????????????? | | ?????????????????########???????????????? | | ????????????????????????????????????????? | | | | | | | | | | | | | | | | | | | | | | | | | | | | | | | | | +----------------------------------------------------+ Best States ------------- Heat Dissipation 25 Energy Generation 10 Energy Capacity 250 Matter Stores 300 Matter Capacity 300 Sight Range 16 Terrain Scan Range 16 Terrain Scan Density 10 Evasion (%) 42 Recoil Reduction 2 Item Schematics ----------------- None Robot Schematics ------------------ None Fabricated ------------ Nothing Alien Tech Used ----------------- None Achievements -------------- None Challenges ------------ None Game ------ Seed IonicTeslaSuite Manual? 0 Play Time 00:40:31 Cumulative 274.3 hours Start 2021.09.11 @ 19:36:08 End 2021.09.13 @ 18:03:06 Sessions 3 Manual Loads 0 Difficulty Rogue Special Mode None Game No. 205 Rogue 205 Adventurer 0 Explorer 0 Win Type - Total 5 Types 5/0/0/0/0/0/0/0/0 Lore% 51 Gallery% 73 Achievement% 58 Wizard Run 0 Options --------- ASCII 0 Keyboard 0 Movement Numpad Keybinds 0 Fullscreen 2 Font 18/TerminusBold Map View 76x50 Tactical HUD 1 Map Filters NONE Filters NONE Steam 1 RUN: 74842132-4dd3-46d2-99a3-1885718da22b